{"text_format":"1","workbook":"xlsx","n_sheets":2,"sheets":["Ganttimekko","Notes"],"not_rendered":{"charts":0,"images":0,"macros":1,"external_links":0,"defined_names":0,"comments":0,"pivot_tables":0},"unopened":[],"bounds":{"document_bytes":16777216,"sheet_cells":100000,"rows_first":2000,"rows_last":500,"rows_between":2000,"halvings":0,"cell_chars":16384,"cell_head_chars":4096},"cells_cut":0,"cells_raw":0,"read":"whole","date_system":"1900"}

{"sheet":"Ganttimekko","index":0,"n_rows":9,"n_cols":30,"rows_kept":9,"cut":false,"hidden":false,"merged":[]}
[]
[null,"Topic","Topic","Funder","Funded Amount ($M)","Project Dates","Start Date","End Date",1995,{"$f":"I2+1","v":1996},{"$f":"J2+1","v":1997},1998,1999,2000,2001,2002,2003,2004,2005,2006,2007,2008,2009,2010,2011,2012,2013,2014,2015,2016]
[null,"Health",{"$f":"IF(B3<>B2,B3,\"\")","v":"Health"},"HHS",1,"1995-2000",{"$f":"VALUE(LEFT(F3,4))","v":1995},{"$f":"VALUE(RIGHT(F3,4))","v":2000},{"$f":"IF($G3>I$2,1,0)+IF($H3<I$2,1,0)","v":0},{"$f":"IF($G3>J$2,1,0)+IF($H3<J$2,1,0)","v":0},0,0,0,0,1,1,1,1,1,1,1,1,1,1,1,1,1,1,1,1]
[null,"Health",{"$f":"IF(B4<>B3,B4,\"\")","v":""},"CMS",2.5,"1998-2002",{"$f":"VALUE(LEFT(F4,4))","v":1998},{"$f":"VALUE(RIGHT(F4,4))","v":2002},{"$f":"IF($G4>I$2,1,0)+IF($H4<I$2,1,0)","v":1},1,1,0,0,0,0,0,1,1,1,1,1,1,1,1,1,1,1,1,1,1]
[null,"Economy","Economy","CBO",2,"2000-2010",2000,2010,1,1,1,1,1,0,0,0,0,0,0,0,0,0,0,0,1,1,1,1,1,1]
[null,"Economy","","CEA",2.75,"2002-2008",2002,2008,1,1,1,1,1,1,1,0,0,0,0,0,0,0,1,1,1,1,1,1,1,1]
[null,"Economy","","CRS",1.5,"2006-2016",2006,2016,1,1,1,1,1,1,1,1,1,1,1,0,0,0,0,0,0,0,0,0,0,0]
[null,"Tax","Tax","JCT",2,"2001-2008",2001,2008,1,1,1,1,1,1,0,0,0,0,0,0,0,0,1,1,1,1,1,1,1,1]
[null,"Tax","","TPC",2.25,"2003-2007",2003,2007,1,1,1,1,1,1,1,1,0,0,0,0,0,1,1,1,1,1,1,1,1,1]

{"sheet":"Notes","index":1,"n_rows":11,"n_cols":1,"rows_kept":11,"cut":false,"hidden":false,"merged":[]}
["This file is provided to you by PolicyViz."]
["Instructions on how to create this graph can be found here:  https://policyviz.com/2018/05/24/introducing-the-ganttimekko/"]
[]
["Learn more about how PolicyViz can help you do a better job process, analyze, share, and present your data."]
[]
["Visit PolicyViz for resources about data visualization and presentation skills:"]
["-Submit your visualizations to HelpMeViz to receive feedback and advice about your visualization challenges. "]
["-Listen to the weekly PolicyViz Podcast to learn more about data visualization, open data, tools, presentations, and more."]
["-Purchase Better Presentations: A Guide for Scholars, Researchers, and Wonks to learn how to deliver data-rich presentations. "]
["-Visit the Better Presentations website to download PowerPoint files, icons, worksheets and more."]
["-Purchase the step-by-step Excel e-books to extend the data visualization capabilities of Excel in the PolicyViz Shop."]